Cogmind - Beta 10.1 @@@ ROGUE MODE // 2020.10.12 @ 15:03:54 Player: Cracklepappy Result: Destroyed by G-34 Mercenary with Small Laser Performance ------------- Evolutions (0) 0 Regions Visited (1) 200 Robots Destroyed (81) 405 Value Destroyed (928) 928 Prototype IDs (4) 80 Alien Tech Used (0) 0 Bonus (0) 0 TOTAL SCORE: 1613 Bonus ------- None Cogmind --------- Core Integrity 0/250 Matter 294/300 Energy 250/250 System Corruption 0% Temperature Cool (6) Movement Treading (180) Ox1 Location -10/Materials Parts ------- > --- POWER (1) -------- Ion Engine > --- PROPULSION (2) --- Light Treads Light Treads > --- UTILITY (2) ------ High-capacity Storage Unit High-capacity Storage Unit > --- WEAPON (2) ------- Light Assault Rifle Light Assault Rifle > --- INVENTORY (20) --- Light Nuclear Core Light Treads Light Treads Light Treads Light Treads Light Treads Heat Sink Improved Heat Sink Large Storage Unit High-capacity Storage Unit High-capacity Storage Unit Structural Scanner Hacking Suite Small Laser Grenade Launcher Mining Laser Welding Torch Peak State ------------ > --- POWER ------------ Ion Engine > --- PROPULSION ------- Light Treads Light Treads > --- UTILITY ---------- Large Storage Unit High-capacity Storage Unit > --- WEAPON ----------- Assault Rifle Light Assault Rifle > --- INVENTORY -------- Ion Engine Light Nuclear Core Light Treads Light Treads Light Treads Light Treads Light Treads Large Storage Unit High-capacity Storage Unit High-capacity Storage Unit High-capacity Storage Unit Structural Scanner Small Laser Assault Rifle Light Assault Rifle Light Assault Rifle Grenade Launcher Mining Laser [Rating: 9] Favorites ----------- Power Ion Engine Engine Ion Engine Propulsion Light Treads Treads Light Treads Wheel Wheel Utility High-capacity Storage Unit Storage High-capacity Storage Unit Weapon Light Assault Rifle Energy Gun EM Pulse Gun Ballistic Gun Light Assault Rifle Launcher Grenade Launcher Special Weapon Welding Torch Build | -11 -10 ------- Run | Scr Mat Slots Evolved . | . . Power . | . . Propulsion . | . . Utility . | . . Weapon . | . . Parts Attached 37 | 8 29 Power 3 | 1 2 Engine 3 | 1 2 Core . | . . Reactor . | . . Propulsion 7 | 3 4 Treads 5 | 1 4 Leg . | . . Wheel 2 | 2 . Hover . | . . Flight . | . . Utility 7 | 2 5 Device . | . . Storage 7 | 2 5 Processor . | . . Hackware . | . . Protection . | . . Artifact . | . . Weapon 20 | 2 18 Energy Gun 1 | 1 . Energy Cannon . | . . Ballistic Gun 13 | 1 12 Ballistic Cannon . | . . Launcher 5 | . 5 Special Weapon 1 | . 1 Impact Weapon . | . . Slashing Weapon . | . . Piercing Weapon . | . . Special Melee Weapon . | . . Unidentified Prototypes . | . . Parts Lost 9 | . 9 Power 1 | . 1 Propulsion 1 | . 1 Utility . | . . Weapon 7 | . 7 Highest Loss Streak 3 | . 3 Average Slot Usage (%) 99 | . 99 Engine 13 | . 13 Treads 27 | . 27 Storage 28 | . 28 Ballistic Gun 27 | . 27 Naked Turns . | . . Heaviest Build 73 | 16 73 Greatest Support 40 | 26 40 Greatest Overweight (x) 18 | 1 18 Average Overweight (x) 6 | . 6 Largest Inventory Capacity 20 | 8 20 Average Capacity 17 | 7 17 Most Carried 20 | 8 20 Average Carried 16 | 5 16 Final Capacity 20 | 8 20 Final Carried 17 | 8 17 Class Distribution -------------------- 89% | Mutant 10% | Hauler-Mutant Dominant Class ---------------- Mutant | -10/Materials Resources | -11 -10 ----------- Run | Scr Mat Matter Collected 1347 | 310 1037 Remotely . | . . Salvage Created 2270 | 230 2040 Parts 157 | 14 143 Haulers Intercepted 2 | . 2 Recyclers Shooed 1 | . 1 Parts Field Recycled . | . . Retrieved Matter . | . . Parts Self-Destructed . | . . Prevented . | . . Kills | -11 -10 ------- Run | Scr Mat Combat Hostiles Destroyed 27 | . 27 Guns 15 | . 15 AOE 12 | . 12 Classes Destroyed 9 | 3 6 Worker 27 | 2 25 Builder 7 | . 7 Tunneler 5 | 4 1 Hauler 2 | . 2 Recycler 8 | 1 7 Operator 2 | . 2 Watcher 3 | . 3 Swarmer 12 | . 12 Grunt 15 | . 15 Best Kill Streak 7 | 4 7 Combat Bots Only 3 | . 3 Max Kills in Single Turn 3 | 1 3 Gunslinging . | . . Exploded 2 | . 2 Melee . | . . Uniques/NPCs Destroyed . | . . Combat | -11 -10 -------- Run | Scr Mat Damage Taken 1476 | 6 1470 Core 251 | . 251 Absorbed by Shields . | . . Core Remaining (%) 100 | 100 . Volleys Fired 282 | 44 238 Largest 2 | 1 2 Hottest 50 | 40 50 Shots Fired 470 | 44 426 Gun 460 | 44 416 Cannon . | . . Launcher 10 | . 10 Special . | . . Kinetic 423 | 30 393 Thermal . | . . Explosive 10 | . 10 Electromagnetic 37 | 14 23 Robot Hit Streak 12 | 6 12 Robot Miss Streak 4 | 4 4 Penetration Max . | . . Secondary Targets 1 | . 1 Max Gunslinging Chain 1 | . 1 Shots Hit Robots 302 | 25 277 Core Hits 131 | 11 120 Critical Hits 1 | . 1 Critical Kills . | . . Critical Parts Destroyed 1 | . 1 Melee Attacks . | . . Impact . | . . Slashing . | . . Piercing . | . . Sneak Attacks . | . . Combat Hostiles . | . . Follow-up Attacks . | . . Damage Inflicted 3866 | 367 3499 Guns 2843 | 246 2597 Cannons . | . . Explosions 1023 | 121 902 Melee . | . . Ramming . | . . Kinetic 2510 | 163 2347 Thermal 242 | 121 121 Explosive 781 | . 781 Electromagnetic 333 | 83 250 Impact . | . . Slashing . | . . Piercing . | . . Highest Corruption . | . . Average Corruption . | . . Corruption Purged . | . . Overload Shots . | . . Overflow Damage 64 | 14 50 Projectiles . | . . Explosions 64 | 14 50 Melee . | . . Knockbacks . | . . Impact . | . . Kinetic . | . . Secondary . | . . Self-Inflicted Damage 153 | 6 147 Shots 9 | 1 8 Rammed . | . . Targets Rammed . | . . Kicked . | . . Crushed . | . . Highest Temperature 42 | 12 42 Average Temperature 12 | 12 12 Received Heat Transfer 591 | . 591 Siege Activations . | . . Robots Corrupted 1 | . 1 Combat Hostiles . | . . Parts Fried 2 | . 2 Impact Corruptions . | . . Robots Melted . | . . Combat Hostiles . | . . Parts Melted . | . . Heat Transferred 350 | 150 200 Parts Sabotaged . | . . Parts Stolen . | . . Parts Stripped . | . . Power Chain Reactions 4 | 2 2 Missiles Intercepted . | . . Alert | -11 -10 ------- Run | Scr Mat Peak Influence 382 | 35 382 Initial 22 | . 22 Average 71 | 17 72 Maximum Alert Level 1 | . 1 Low Security (%) 86 | 100 85 Level 1 13 | . 14 Level 2 . | . . Level 3 . | . . Level 4 . | . . Level 5 . | . . High Security . | . . Max Security . | . . Squads Dispatched 5 | . 5 Investigation 3 | . 3 Extermination . | . . Reinforcement 2 | . 2 Assault . | . . Garrison . | . . Intercept . | . . Construction Impeded . | . . Haulers Reinforced . | . . Stealth | -11 -10 --------- Run | Scr Mat Distress Signals 1 | . 1 Communications Jammed . | . . Distress Signals . | . . Times Spotted 53 | . 53 Peak Tracking Total 4 | . 4 Tactical Retreats 2 | . 2 Traps | -11 -10 ------- Run | Scr Mat Traps Triggered 3 | . 3 Indirectly . | . . Trap Hack Attempts . | . . Triggered . | . . Disarmed . | . . Reprogrammed . | . . Reused . | . . Traps Extracted . | . . Installed . | . . Triggered . | . . Machines | -11 -10 ---------- Run | Scr Mat Machines Disabled 4 | . 4 Max in Single Turn 1 | . 1 Machines Sabotaged . | . . Garrisons Compromised . | . . Overloaded Fab Kills . | . . Fab Network Shutdowns . | . . Hacking | -11 -10 --------- Run | Scr Mat Machines Accessed 8 | . 8 Terminals 5 | . 5 Fabricators . | . . Repair Stations 1 | . 1 Recycling Units 2 | . 2 Scanalyzers . | . . Garrison Access . | . . Total Hacks 20 | . 20 Successful 12 | . 12 Failed 8 | . 8 Catastrophic . | . . Database Lockouts . | . . Manual 12 | . 12 Terminals 16 | . 16 Fabricators . | . . Repair Stations 1 | . 1 Recycling Units 3 | . 3 Scanalyzers . | . . Garrison Access . | . . Terminal Hacks 8 | . 8 Part Schematic 1 | . 1 Prototype ID Bank 3 | . 3 Unreport Threat 2 | . 2 Locate Traps 1 | . 1 Zone Layout 1 | . 1 Fabricator Hacks . | . . Repair Station Hacks . | . . Recycling Unit Hacks . | . . Scanalyzer . | . . Garrison Access Hacks . | . . Unauthorized Hacks 4 | . 4 Terminals 2 | . 2 Assimilate 1 | . 1 Operators 1 | . 1 Fabricators . | . . Repair Stations . | . . Recycling Units 2 | . 2 Tunnel 2 | . 2 Scanalyzers . | . . Garrison Access . | . . Data Cores Recovered . | . . Used . | . . Hacking Detections 6 | . 6 Full Trace Events . | . . Feedback Events . | . . Feedback Blocked . | . . Robot Schematics Acquired . | . . Robots Built . | . . Matter . | . . Time . | . . Total Robot Build Rating . | . . Part Schematics Acquired 1 | . 1 Parts Built . | . . Matter . | . . Time . | . . Total Part Build Rating . | . . Parts Repaired . | . . Time . | . . Parts Recycled . | . . Recycled Matter . | . . Retrieved Matter . | . . Retrieved Components . | . . Parts Scanalyzed . | . . Part Schematics Acquired . | . . Parts Damaged . | . . Bothacking | -11 -10 ------------ Run | Scr Mat Used RIF Installer . | . . Robots Hacked . | . . Non-combat . | . . Combat . | . . Robot Hacks Applied . | . . Relay Couplers Released . | . . Robots Rewired . | . . Allies Hacked . | . . Hacks Repelled . | . . Allies | -11 -10 -------- Run | Scr Mat Total Allies . | . . Largest Group . | . . Highest-Rated Group . | . . Highest-Rated Ally . | . . Total Orders . | . . Ally Attacks . | . . Total Damage . | . . Kills . | . . Allies Corrupted . | . . Allies Melted . | . . Intel | -11 -10 ------- Run | Scr Mat Robot Analysis Total . | . . Derelict Logs Recovered . | . . Drone Launches . | . . Drone Recoveries . | . . Exploration | -11 -10 ------------- Run | Scr Mat Turns Passed 12072 | 219 11853 Spaces Moved 2625 | 129 2496 Core 811 | 1 810 Treads 1421 | . 1421 Legs . | . . Wheels 393 | 128 265 Hover . | . . Flight . | . . Fastest Speed 50 | 50 90 Average Speed 402 | 89 418 Slowest Speed 950 | 90 950 Overloaded Moves . | . . Propulsion Burnouts . | . . Robots Hopped . | . . Cave-ins Triggered . | . . Exploration Rate (%) 52 | 6 98 Regions Visited 1 Branch Regions . Pre-discovered Areas 2 | . 2 Known Exits Taken . | . . Unknown Exits Taken 1 | 1 . Scrap Searched . | . . Spaces Dug . | . . Terrain Destroyed 66 | 7 59 Melee . | . . Projectile . | . . AOE 66 | 7 59 Terrain Rammed . | . . Walls Destroyed . | . . Machines Disabled . | . . Actions | -11 -10 --------- Run | Scr Mat Total 3721 | 191 3530 Wait 716 | . 716 Move 2624 | 128 2496 Hop . | . . Pick Up 40 | 10 30 Fast Attach 8 | 6 2 Attach 10 | 1 9 Detach . | . . Swap 19 | 1 18 Drop 22 | 1 21 Fire 282 | 44 238 Melee . | . . Ram . | . . Kick . | . . Crush . | . . Escape Stasis . | . . Rewire . | . . Trap . | . . Miscellaneous . | . . Route ------- -11/Scrapyard -10/Materials (discovered 4 exits: [*Mat x3] / [*Min]) History --------- Turn | Location | Event 20 | -11/Scrapyard | Discovered new exit (range 14) 220 | -11/Scrapyard | Entered Materials 308 | -10/Materials | Build established: Mutant 393 | -10/Materials | Discovered new exit (range 13) 502 | -10/Materials | Discovered new exit (range 15) 841 | -10/Materials | Discovered new exit (range 16) 1275 | -10/Materials | Discovered new exit (range 5) 1597 | -10/Materials | Core integrity fell below 50% 11108 | -10/Materials | Build established: Hauler-Mutant 11498 | -10/Materials | Core integrity fell below 20% 11554 | -10/Materials | Lost 3 parts (1n2w) 12073 | -10/Materials | Destroyed by G-34 Mercenary with Small Laser Last Messages --------------- 11636_ K-01 Serf destroyed. 11689_ Acquired 14 matter. 11693_ R-06 Scavenger destroyed. 11698_ K-01 Serf destroyed. 11706_ K-01 Serf collects debris. 11711_ Acquired 6 matter. 11761_ U-05 Engineer destroyed. 11763_ Destroyed Welding Torch. 11766_ U-05 Engineer destroyed. 11808_ K-01 Serf destroyed. 11820_ Acquired 10 matter. 11821_ K-01 Serf destroyed. 11822_ Acquired 2 matter. 11825_ K-01 Serf collects debris. 11864_ Acquired 6 matter. 11875_ K-01 Serf destroyed. 11914_ Acquired 8 matter. 11919_ Acquired 2 matter. 11974_ K-01 Serf destroyed. 11979_ Acquired 2 matter. Map ----- +----------------------------------------------------+ | ###* """ #?????????????????????????????????????? | | + """ #?????????????????????????????????????? | | !# #?????????????????????????????????????? | | *# """ #?????????????????????????????????????? | | # """ #?????????????????????????????????????? | | # """ #?????????????????????????????????????? | | #= #?????????????????????????????????????? | | #####+#########????????????????????????????????? | | #??# + """ #????????????????????????????????? | | #### # """ #????????????????????????????????? | | | # """ #?????????????##########?????????? | | %|| % # #?????????????# #?????????? | | =|| =%T # #???????????### #?????????? | | * !==== # #?????????##### #?######### | | * = ###+############## %!# #?# # | | %= % ! %+* """ #?# # | | === %# """"" #?# # """ | | %= !=%*= !=# """""???# + """ | | =# ##%###################! %# """""???# # """ | | ######=#?????????????????# =!# """ ???# # | | # # ?# #??????????######## #######????# ##### | | +######+#####??????# # #??????????# #???? | | #?# #??????# """! # #??????????# #???? | | #?# T #??????# "Y % # ############ #???? | | " #?# #??????# """ # #???? | | " #?# #??????# ! @# #???? | | " #?# #??????# % g= %* #???? | | ! #?# ###########+###%*u############ #???? | | +#########+## ### ###!!=#? # #???? | | = * ! =%/ =% %* =## """ """ # #???? | | !== ! ! < * = ! ## """ """ # ##### | | =!%=! ! ! ## """ """ + # | | +#########+## "##!= ## """ """ # # | | ## %*#" |" "##% !== ## """ """ # # | | ## T !!#"""""""##!! ## * # # """ | | ## %########## = ## # # """ | | ## ######???# ############ # """ | | ## *% # #???# = #??????????# # | | ## # ##### %= #??????????# + """ | | #######+# ##T## = #??????????# # """ | | # # # + #??????????# # """ | | # # # # #?#######??# # | | ##### " # ###### #?# #####+###### | | ????# # ^ % #?# """ # #? | | ????# " + = #?# """ # #? | | ????# " =# *" "" ### """ # #? | | ????# ## %""" """ ""# # #? | | #???# " ## ^ """ R" T"# """ # ! #? | | #???# " ## """ ""# """ # #? | | #???# """ ## ! ### """ # !! #? | +----------------------------------------------------+ Best States ------------- Heat Dissipation 25 Energy Generation 10 Energy Capacity 250 Matter Stores 300 Matter Capacity 300 Sight Range 16 Terrain Scan Density 10 Evasion (%) 42 Recoil Reduction 2 Item Schematics ----------------- Hcp. Storage Unit | -10/Materials | Hacked Robot Schematics ------------------ None Fabricated ------------ Nothing Alien Tech Used ----------------- None Achievements -------------- None Challenges ------------ None Game ------ Seed SpikedVisualCanceller Manual? 0 Play Time 00:26:22 Cumulative 209.1 hours Start 2020.10.12 @ 14:39:21 End 2020.10.12 @ 15:03:54 Sessions 1 Manual Loads 0 Difficulty Rogue Special Mode None Game No. 229 Rogue 229 Adventurer 0 Explorer 0 Win Type - Total 2 Types 2/0/0/0/0/0/0/0/0 Lore% 61 Gallery% 75 Achievement% 58 Wizard Run 0 Options --------- ASCII 0 Keyboard 0 Movement Numpad Keybinds 0 Fullscreen 2 Font 24/Smallcaps Map View 76x50 Tactical HUD 1 Map Filters NONE Filters NONE Steam 1 RUN: cdfffffb-96d5-464e-8093-dfc3215ad1ce